[Event "Titled Tuesday Blitz August 16 Early 2022"]
[White "Krsnik Cohar, Ivan Vihor"]
[Black "Malyi, Viacheslav"]
[WhiteFideId "14520044"]
[BlackFideId "14123983"]
[WhiteElo "2414"]
[BlackElo "2190"]
[Result "1-0"]
[Round "08"]
[TimeControl "180+2"]
[Date "2022.08.18"]
[WhiteClock "0:00:00"]
[BlackClock "0:00:00"]

1. e4 {[%clk 0:00:00]}  e5 {[%clk 0:00:00]} 2. Nf3 {[%clk 0:00:00]}  Nc6 {[%clk 0:00:00]} 3. d4 {[%clk 0:00:00]}  exd4 {[%clk 0:00:00]} 4. Bc4 {[%clk 0:00:00]}  Nf6 {[%clk 0:00:00]} 5. O-O {[%clk 0:00:00]}  Nxe4 {[%clk 0:00:00]} 6. Re1 {[%clk 0:00:00]}  d5 {[%clk 0:00:00]} 7. Bxd5 {[%clk 0:00:00]}  Qxd5 {[%clk 0:00:00]} 8. Nc3 {[%clk 0:00:00]}  Qh5 {[%clk 0:00:00]} 9. Nxe4 {[%clk 0:00:00]}  Be6 {[%clk 0:00:00]} 10. Bg5 {[%clk 0:00:00]}  Bd6 {[%clk 0:00:00]} 11. Bf6 {[%clk 0:00:00]}  Bxh2+ {[%clk 0:00:00]} 12. Nxh2 {[%clk 0:00:00]}  Qxd1 {[%clk 0:00:00]} 13. Raxd1 {[%clk 0:00:00]}  gxf6 {[%clk 0:00:00]} 14. Nxf6+ {[%clk 0:00:00]}  Ke7 {[%clk 0:00:00]} 15. Nd5+ {[%clk 0:00:00]}  Kd6 {[%clk 0:00:00]} 16. Nc3 {[%clk 0:00:00]}  Rad8 {[%clk 0:00:00]} 17. a3 {[%clk 0:00:00]}  Kd7 {[%clk 0:00:00]} 18. Nf3 {[%clk 0:00:00]}  Bg4 {[%clk 0:00:00]} 19. Ne5+ {[%clk 0:00:00]}  Nxe5 {[%clk 0:00:00]} 20. Rxd4+ {[%clk 0:00:00]}  Ke6 {[%clk 0:00:00]} 21. Rxg4 {[%clk 0:00:00]}  Kf5 {[%clk 0:00:00]} 22. Rb4 {[%clk 0:00:00]}  c5 {[%clk 0:00:00]} 23. Rxb7 {[%clk 0:00:00]}  Rhg8 {[%clk 0:00:00]} 24. Kf1 {[%clk 0:00:00]}  f6 {[%clk 0:00:00]} 25. Rxa7 {[%clk 0:00:00]}  Rd2 {[%clk 0:00:00]} 26. Re2 {[%clk 0:00:00]}  Nc4 {[%clk 0:00:00]} 27. b3 {[%clk 0:00:00]}  Rxe2 {[%clk 0:00:00]} 28. Nxe2 {[%clk 0:00:00]}  Nd2+ {[%clk 0:00:00]} 29. Ke1 {[%clk 0:00:00]}  Ne4 {[%clk 0:00:00]} 30. f3 {[%clk 0:00:00]}  Nd6 {[%clk 0:00:00]} 31. g4+ {[%clk 0:00:00]}  Ke6 {[%clk 0:00:00]} 32. Rxh7 {[%clk 0:00:00]}  Nb5 {[%clk 0:00:00]} 33. a4 {[%clk 0:00:00]}  Nd6 {[%clk 0:00:00]} 34. a5 {[%clk 0:00:00]}  Ra8 {[%clk 0:00:00]} 35. Nf4+ {[%clk 0:00:00]}  Ke5 {[%clk 0:00:00]} 36. Nd3+ {[%clk 0:00:00]}  Kd5 {[%clk 0:00:00]} 37. Rh5+ {[%clk 0:00:00]}  Kd4 {[%clk 0:00:00]} 38. Rxc5 {[%clk 0:00:00]}  Nb7 {[%clk 0:00:00]} 39. Rc4+ {[%clk 0:00:00]}  Ke3 {[%clk 0:00:00]} 40. b4 {[%clk 0:00:00]}  Nd6 {[%clk 0:00:00]} 41. Rc6 {[%clk 0:00:00]}  Rh8 {[%clk 0:00:00]} 42. Kd1 {[%clk 0:00:00]}  Rh1+ {[%clk 0:00:00]} 43. Ne1 {[%clk 0:00:00]}  Nb5 {[%clk 0:00:00]} 44. Re6+ {[%clk 0:00:00]}  Kd4 {[%clk 0:00:00]} 45. a6 {[%clk 0:00:00]}  Kd5 {[%clk 0:00:00]} 46. Re7 {[%clk 0:00:00]}  Kd6 {[%clk 0:00:00]} 47. a7 {[%clk 0:00:00]}  Rh8 {[%clk 0:00:00]} 48. Rb7 {[%clk 0:00:00]}  Nc7 {[%clk 0:00:00]} 49. Rb8 {[%clk 0:00:00]}  Rh2 {[%clk 0:00:00]} 50. a8=Q {[%clk 0:00:00]}  Nxa8 {[%clk 0:00:00]} 51. Rxa8 {[%clk 0:00:00]}  Ke5 {[%clk 0:00:00]} 52. Ra3 {[%clk 0:00:00]}  Kf4 {[%clk 0:00:00]} 53. Rd3 {[%clk 0:00:00]}  Rh1 {[%clk 0:00:00]} 54. b5 {[%clk 0:00:00]}  Rh8 {[%clk 0:00:00]} 55. b6 {[%clk 0:00:00]}  Rb8 {[%clk 0:00:00]} 56. Rb3 {[%clk 0:00:00]}  Ke5 {[%clk 0:00:00]} 57. b7 {[%clk 0:00:00]}  Kd5 {[%clk 0:00:00]} 58. Nd3 {[%clk 0:00:00]}  Kc4 {[%clk 0:00:00]} 59. Ke2 {[%clk 0:00:00]}  f5 {[%clk 0:00:00]} 60. gxf5 {[%clk 0:00:00]}  Re8+ {[%clk 0:00:00]} 61. Kf2 {[%clk 0:00:00]}  Rb8 {[%clk 0:00:00]} 62. f6 {[%clk 0:00:00]}  Rxb7 {[%clk 0:00:00]} 63. Rxb7 {[%clk 0:00:00]} 1-0


[Site "https://www.chess.com"]

[Event "Titled Tuesday Blitz August 16 Early 2022"]
[White "Lazavik, Denis"]
[Black "Wagner, Dennis"]
[WhiteFideId "13515110"]
[BlackFideId "24650684"]
[WhiteElo "2437"]
[BlackElo "2355"]
[Result "1-0"]
[Round "08"]
[TimeControl "180+1"]
[Date "2022.08.16"]
[WhiteClock "0:00:08"]
[BlackClock "0:00:06"]

1. d4 {[%clk 0:03:00]}  Nf6 {[%clk 0:03:00]} 2. c4 {[%clk 0:03:01]}  e6 {[%clk 0:03:00]} 3. Nc3 {[%clk 0:03:01]}  Bb4 {[%clk 0:02:59]} 4. e3 {[%clk 0:03:02]}  O-O {[%clk 0:03:00]} 5. Bd3 {[%clk 0:03:03]}  d5 {[%clk 0:03:00]} 6. cxd5 {[%clk 0:03:03]}  exd5 {[%clk 0:03:00]} 7. a3 {[%clk 0:03:03]}  Bd6 {[%clk 0:02:57]} 8. Qc2 {[%clk 0:03:03]}  Na6 {[%clk 0:02:43]} 9. b4 {[%clk 0:03:01]}  c6 {[%clk 0:02:43]} 10. Nge2 {[%clk 0:03:00]}  Nc7 {[%clk 0:02:44]} 11. O-O {[%clk 0:02:57]}  Re8 {[%clk 0:02:39]} 12. f3 {[%clk 0:02:56]}  a5 {[%clk 0:02:20]} 13. bxa5 {[%clk 0:02:54]}  Ne6 {[%clk 0:02:08]} 14. Bd2 {[%clk 0:02:32]}  Rxa5 {[%clk 0:02:00]} 15. a4 {[%clk 0:02:19]}  Ra7 {[%clk 0:01:57]} 16. Kh1 {[%clk 0:02:17]}  Bb8 {[%clk 0:01:49]} 17. Rad1 {[%clk 0:01:59]}  Qd6 {[%clk 0:01:49]} 18. g3 {[%clk 0:01:49]}  h6 {[%clk 0:01:32]} 19. Bc1 {[%clk 0:01:44]}  Ng5 {[%clk 0:01:28]} 20. e4 {[%clk 0:01:38]}  dxe4 {[%clk 0:01:22]} 21. fxe4 {[%clk 0:01:37]}  Qd8 {[%clk 0:00:35]} 22. Bxg5 {[%clk 0:01:18]}  hxg5 {[%clk 0:00:35]} 23. e5 {[%clk 0:01:18]}  Nd5 {[%clk 0:00:35]} 24. Bh7+ {[%clk 0:01:14]}  Kf8 {[%clk 0:00:29]} 25. Rxf7+ {[%clk 0:00:53]}  Kxf7 {[%clk 0:00:29]} 26. Qg6+ {[%clk 0:00:54]}  Ke7 {[%clk 0:00:19]} 27. Qxg7+ {[%clk 0:00:53]}  Ke6 {[%clk 0:00:20]} 28. Rf1 {[%clk 0:00:17]}  Ne7 {[%clk 0:00:19]} 29. Ne4 {[%clk 0:00:16]}  b6 {[%clk 0:00:08]} 30. Nxg5+ {[%clk 0:00:10]}  Kd5 {[%clk 0:00:07]} 31. Qf7+ {[%clk 0:00:08]}  Be6 {[%clk 0:00:06]} 32. Qxe6# {[%clk 0:00:08]} 1-0


[Site "https://www.chess.com"]

[Event "Titled Tuesday Blitz August 16 Early 2022"]
[White "Lebedev, Artem S."]
[Black "Quispe Santacruz, Javier"]
[WhiteFideId "34272747"]
[BlackFideId "3800920"]
[WhiteElo "1699"]
[BlackElo "1929"]
[Result "1/2-1/2"]
[Round "08"]
[TimeControl "180+2"]
[Date "2022.08.18"]
[WhiteClock "0:00:00"]
[BlackClock "0:00:00"]

1. e4 {[%clk 0:00:00]}  e5 {[%clk 0:00:00]} 2. Nf3 {[%clk 0:00:00]}  Nc6 {[%clk 0:00:00]} 3. Bb5 {[%clk 0:00:00]}  a6 {[%clk 0:00:00]} 4. Ba4 {[%clk 0:00:00]}  Nf6 {[%clk 0:00:00]} 5. O-O {[%clk 0:00:00]}  Be7 {[%clk 0:00:00]} 6. d3 {[%clk 0:00:00]}  b5 {[%clk 0:00:00]} 7. Bb3 {[%clk 0:00:00]}  d6 {[%clk 0:00:00]} 8. c3 {[%clk 0:00:00]}  Na5 {[%clk 0:00:00]} 9. Bc2 {[%clk 0:00:00]}  c5 {[%clk 0:00:00]} 10. Nbd2 {[%clk 0:00:00]}  Qc7 {[%clk 0:00:00]} 11. Re1 {[%clk 0:00:00]}  O-O {[%clk 0:00:00]} 12. Nf1 {[%clk 0:00:00]}  Re8 {[%clk 0:00:00]} 13. Ng3 {[%clk 0:00:00]}  Bf8 {[%clk 0:00:00]} 14. Bg5 {[%clk 0:00:00]}  Be7 {[%clk 0:00:00]} 15. h3 {[%clk 0:00:00]}  Be6 {[%clk 0:00:00]} 16. d4 {[%clk 0:00:00]}  cxd4 {[%clk 0:00:00]} 17. cxd4 {[%clk 0:00:00]}  exd4 {[%clk 0:00:00]} 18. Nxd4 {[%clk 0:00:00]}  Nc4 {[%clk 0:00:00]} 19. b3 {[%clk 0:00:00]}  Ne5 {[%clk 0:00:00]} 20. f4 {[%clk 0:00:00]}  Nc6 {[%clk 0:00:00]} 21. Nxc6 {[%clk 0:00:00]}  Qxc6 {[%clk 0:00:00]} 22. Qd3 {[%clk 0:00:00]}  Rac8 {[%clk 0:00:00]} 23. Rac1 {[%clk 0:00:00]}  Qc3 {[%clk 0:00:00]} 24. e5 {[%clk 0:00:00]}  Qxd3 {[%clk 0:00:00]} 25. Bxd3 {[%clk 0:00:00]}  dxe5 {[%clk 0:00:00]} 26. fxe5 {[%clk 0:00:00]}  Nd5 {[%clk 0:00:00]} 27. Bxe7 {[%clk 0:00:00]}  Nxe7 {[%clk 0:00:00]} 28. Ne4 {[%clk 0:00:00]}  Nf5 {[%clk 0:00:00]} 29. Nc5 {[%clk 0:00:00]}  Red8 {[%clk 0:00:00]} 30. Bxf5 {[%clk 0:00:00]}  Bxf5 {[%clk 0:00:00]} 31. Nb7 {[%clk 0:00:00]}  Rxc1 {[%clk 0:00:00]} 32. Rxc1 {[%clk 0:00:00]}  Rc8 {[%clk 0:00:00]} 33. Rxc8+ {[%clk 0:00:00]}  Bxc8 {[%clk 0:00:00]} 34. Nd6 {[%clk 0:00:00]}  Be6 {[%clk 0:00:00]} 35. Kf2 {[%clk 0:00:00]}  Kf8 {[%clk 0:00:00]} 36. Ke3 {[%clk 0:00:00]}  Ke7 {[%clk 0:00:00]} 37. Kd4 {[%clk 0:00:00]}  f6 {[%clk 0:00:00]} 38. Ne4 {[%clk 0:00:00]}  fxe5+ {[%clk 0:00:00]} 39. Kxe5 {[%clk 0:00:00]}  Bc8 {[%clk 0:00:00]} 40. Nc5 {[%clk 0:00:00]}  a5 {[%clk 0:00:00]} 41. h4 {[%clk 0:00:00]}  g6 {[%clk 0:00:00]} 42. g3 {[%clk 0:00:00]}  h6 {[%clk 0:00:00]} 43. Ne4 {[%clk 0:00:00]}  a4 {[%clk 0:00:00]} 44. Nc3 {[%clk 0:00:00]}  axb3 {[%clk 0:00:00]} 45. axb3 {[%clk 0:00:00]}  b4 {[%clk 0:00:00]} 46. Nd5+ {[%clk 0:00:00]}  Kf7 {[%clk 0:00:00]} 47. Nxb4 {[%clk 0:00:00]}  Be6 {[%clk 0:00:00]} 48. Nc6 {[%clk 0:00:00]}  Bxb3 {[%clk 0:00:00]} 49. Nd4 {[%clk 0:00:00]}  Bd1 {[%clk 0:00:00]} 50. Nc6 {[%clk 0:00:00]}  Kg7 {[%clk 0:00:00]} 51. Nb4 {[%clk 0:00:00]}  Bb3 {[%clk 0:00:00]} 52. Nc6 {[%clk 0:00:00]}  g5 {[%clk 0:00:00]} 53. Nd4 {[%clk 0:00:00]}  Bd1 {[%clk 0:00:00]} 54. Nf5+ {[%clk 0:00:00]}  Kg6 {[%clk 0:00:00]} 55. hxg5 {[%clk 0:00:00]}  Kxg5 {[%clk 0:00:00]} 56. Nxh6 {[%clk 0:00:00]}  Kxh6 {[%clk 0:00:00]} 57. g4 {[%clk 0:00:00]}  Kg5 {[%clk 0:00:00]} 58. Kd4 {[%clk 0:00:00]}  Kg6 {[%clk 0:00:00]} 59. Kc3 {[%clk 0:00:00]}  Kf6 {[%clk 0:00:00]} 60. Kd4 {[%clk 0:00:00]}  Kg7 {[%clk 0:00:00]} 61. Ke3 {[%clk 0:00:00]}  Bc2 {[%clk 0:00:00]} 62. Kd2 {[%clk 0:00:00]}  Bg6 {[%clk 0:00:00]} 63. Ke3 {[%clk 0:00:00]}  Bf7 {[%clk 0:00:00]} 64. Kf4 {[%clk 0:00:00]}  Bg8 {[%clk 0:00:00]} 65. g5 {[%clk 0:00:00]}  Bh7 {[%clk 0:00:00]} 66. Ke5 {[%clk 0:00:00]}  Bg8 {[%clk 0:00:00]} 67. g6 {[%clk 0:00:00]}  Kh8 {[%clk 0:00:00]} 68. Kf6 {[%clk 0:00:00]}  Bd5 {[%clk 0:00:00]} 69. Kg5 {[%clk 0:00:00]}  Kg8 {[%clk 0:00:00]} 70. Kf5 {[%clk 0:00:00]}  Bc4 {[%clk 0:00:00]} 71. Kf6 {[%clk 0:00:00]}  Bb3 {[%clk 0:00:00]} 72. g7 {[%clk 0:00:00]}  Bc2 {[%clk 0:00:00]} 73. Kg5 {[%clk 0:00:00]}  Kf7 {[%clk 0:00:00]} 74. Kh6 {[%clk 0:00:00]}  Kg8 {[%clk 0:00:00]} 75. Kg5 {[%clk 0:00:00]}  Kxg7 {[%clk 0:00:00]} 1/2-1/2


[Site "https://www.chess.com"]

[Event "Titled Tuesday Blitz August 16 Early 2022"]
[White "Leiva, Gianmarco"]
[Black "Atanasov, Anthony"]
[WhiteFideId "3804399"]
[BlackFideId "2623897"]
[WhiteElo "2323"]
[BlackElo "1928"]
[Result "1-0"]
[Round "08"]
[TimeControl "180+1"]
[Date "2022.08.16"]
[WhiteClock "0:00:53"]
[BlackClock "0:00:06"]

1. e4 {[%clk 0:02:58]}  c5 {[%clk 0:02:57]} 2. Nf3 {[%clk 0:02:58]}  d6 {[%clk 0:02:58]} 3. Bb5+ {[%clk 0:02:59]}  Nd7 {[%clk 0:02:58]} 4. a4 {[%clk 0:02:59]}  Nf6 {[%clk 0:02:57]} 5. Nc3 {[%clk 0:02:58]}  a6 {[%clk 0:02:53]} 6. Be2 {[%clk 0:02:58]}  b6 {[%clk 0:02:49]} 7. d4 {[%clk 0:02:58]}  cxd4 {[%clk 0:02:49]} 8. Qxd4 {[%clk 0:02:59]}  Bb7 {[%clk 0:02:50]} 9. O-O {[%clk 0:02:58]}  e5 {[%clk 0:02:35]} 10. Qe3 {[%clk 0:02:58]}  Nc5 {[%clk 0:02:34]} 11. Nd2 {[%clk 0:02:57]}  Ne6 {[%clk 0:02:30]} 12. Nb3 {[%clk 0:02:32]}  Rc8 {[%clk 0:02:06]} 13. Qd3 {[%clk 0:02:27]}  Nc5 {[%clk 0:01:48]} 14. Nxc5 {[%clk 0:02:27]}  dxc5 {[%clk 0:01:49]} 15. Qxd8+ {[%clk 0:02:26]}  Rxd8 {[%clk 0:01:50]} 16. Bg5 {[%clk 0:02:20]}  Be7 {[%clk 0:01:39]} 17. f3 {[%clk 0:02:20]}  h6 {[%clk 0:01:31]} 18. Bxf6 {[%clk 0:02:04]}  Bxf6 {[%clk 0:01:24]} 19. Bc4 {[%clk 0:02:05]}  Rd2 {[%clk 0:01:21]} 20. Rf2 {[%clk 0:02:05]}  Bg5 {[%clk 0:01:21]} 21. Kf1 {[%clk 0:01:46]}  Be3 {[%clk 0:00:39]} 22. Re2 {[%clk 0:01:38]}  Rxe2 {[%clk 0:00:37]} 23. Kxe2 {[%clk 0:01:39]}  Bd4 {[%clk 0:00:36]} 24. Nd1 {[%clk 0:01:40]}  h5 {[%clk 0:00:17]} 25. Kf1 {[%clk 0:01:40]}  f5 {[%clk 0:00:16]} 26. exf5 {[%clk 0:01:37]}  e4 {[%clk 0:00:16]} 27. c3 {[%clk 0:01:27]}  Be5 {[%clk 0:00:16]} 28. fxe4 {[%clk 0:01:17]}  Bxh2 {[%clk 0:00:08]} 29. Nf2 {[%clk 0:01:03]}  Ke7 {[%clk 0:00:04]} 30. Rd1 {[%clk 0:01:04]}  Be5 {[%clk 0:00:04]} 31. Bd5 {[%clk 0:01:00]}  Bc8 {[%clk 0:00:03]} 32. Nd3 {[%clk 0:01:00]}  Bd6 {[%clk 0:00:02]} 33. Kf2 {[%clk 0:00:55]}  Rf8 {[%clk 0:00:02]} 34. Ke3 {[%clk 0:00:53]}  b5 {[%clk 0:00:02]} 35. axb5 {[%clk 0:00:53]}  axb5 {[%clk 0:00:03]} 36. Ra1 {[%clk 0:00:53]}  c4 {[%clk 0:00:03]} 37. Nf4 {[%clk 0:00:49]}  Bc5+ {[%clk 0:00:02]} 38. Kf3 {[%clk 0:00:49]}  Kf6 {[%clk 0:00:02]} 39. Ra8 {[%clk 0:00:47]}  Bxf5 {[%clk 0:00:02]} 40. Rxf8+ {[%clk 0:00:47]}  Bxf8 {[%clk 0:00:01]} 41. exf5 {[%clk 0:00:47]}  Kxf5 {[%clk 0:00:02]} 42. Nxh5 {[%clk 0:00:47]}  g6 {[%clk 0:00:01]} 43. Nf4 {[%clk 0:00:47]}  Bh6 {[%clk 0:00:02]} 44. Ne2 {[%clk 0:00:46]}  Bd2 {[%clk 0:00:02]} 45. Bc6 {[%clk 0:00:47]}  b4 {[%clk 0:00:02]} 46. Bb5 {[%clk 0:00:47]}  bxc3 {[%clk 0:00:02]} 47. bxc3 {[%clk 0:00:48]}  Ke5 {[%clk 0:00:02]} 48. Bxc4 {[%clk 0:00:49]}  g5 {[%clk 0:00:03]} 49. Bd3 {[%clk 0:00:49]}  Kf6 {[%clk 0:00:03]} 50. c4 {[%clk 0:00:50]}  Bb4 {[%clk 0:00:04]} 51. Ke4 {[%clk 0:00:50]}  Bc5 {[%clk 0:00:04]} 52. g4 {[%clk 0:00:51]}  Ke6 {[%clk 0:00:04]} 53. Nc3 {[%clk 0:00:48]}  Kd6 {[%clk 0:00:03]} 54. Na4 {[%clk 0:00:49]}  Bb4 {[%clk 0:00:03]} 55. c5+ {[%clk 0:00:50]}  Ke6 {[%clk 0:00:02]} 56. Bc4+ {[%clk 0:00:50]}  Ke7 {[%clk 0:00:02]} 57. Kd5 {[%clk 0:00:50]}  Bd2 {[%clk 0:00:03]} 58. Nb2 {[%clk 0:00:50]}  Be3 {[%clk 0:00:02]} 59. Nd3 {[%clk 0:00:51]}  Kf6 {[%clk 0:00:02]} 60. Ne5 {[%clk 0:00:50]}  Bf4 {[%clk 0:00:01]} 61. Nf3 {[%clk 0:00:49]}  Ke7 {[%clk 0:00:01]} 62. Kc6 {[%clk 0:00:49]}  Kd8 {[%clk 0:00:02]} 63. Kb7 {[%clk 0:00:48]}  Be3 {[%clk 0:00:02]} 64. c6 {[%clk 0:00:49]}  Bf4 {[%clk 0:00:03]} 65. Nd4 {[%clk 0:00:49]}  Ke7 {[%clk 0:00:03]} 66. Nb5 {[%clk 0:00:49]}  Kf6 {[%clk 0:00:03]} 67. Bd3 {[%clk 0:00:49]}  Bg3 {[%clk 0:00:03]} 68. Bf5 {[%clk 0:00:50]}  Be5 {[%clk 0:00:03]} 69. Kc8 {[%clk 0:00:50]}  Bf4 {[%clk 0:00:04]} 70. Kd7 {[%clk 0:00:51]}  Bb8 {[%clk 0:00:03]} 71. Nd6 {[%clk 0:00:50]}  Ke5 {[%clk 0:00:04]} 72. Nf7+ {[%clk 0:00:49]}  Kf6 {[%clk 0:00:04]} 73. c7 {[%clk 0:00:50]}  Bxc7 {[%clk 0:00:03]} 74. Kxc7 {[%clk 0:00:51]}  Kxf7 {[%clk 0:00:02]} 75. Kd6 {[%clk 0:00:51]}  Kf6 {[%clk 0:00:03]} 76. Kd5 {[%clk 0:00:52]}  Kg7 {[%clk 0:00:03]} 77. Ke5 {[%clk 0:00:52]}  Kh6 {[%clk 0:00:03]} 78. Be4 {[%clk 0:00:53]}  Kg7 {[%clk 0:00:03]} 79. Kf5 {[%clk 0:00:54]}  Kh6 {[%clk 0:00:04]} 80. Bd3 {[%clk 0:00:55]}  Kg7 {[%clk 0:00:04]} 81. Kxg5 {[%clk 0:00:55]}  Kf7 {[%clk 0:00:05]} 82. Kh6 {[%clk 0:00:56]}  Ke7 {[%clk 0:00:06]} 83. Kg7 {[%clk 0:00:56]}  Ke6 {[%clk 0:00:06]} 84. Bf5+ {[%clk 0:00:55]}  Ke5 {[%clk 0:00:06]} 85. Kg6 {[%clk 0:00:56]}  Kd6 {[%clk 0:00:07]} 86. Kf6 {[%clk 0:00:57]}  Kd5 {[%clk 0:00:07]} 87. g5 {[%clk 0:00:57]}  Kd4 {[%clk 0:00:07]} 88. g6 {[%clk 0:00:58]}  Ke3 {[%clk 0:00:08]} 89. g7 {[%clk 0:00:58]}  Kf4 {[%clk 0:00:09]} 90. g8=Q {[%clk 0:00:57]}  Ke3 {[%clk 0:00:10]} 91. Qg4 {[%clk 0:00:53]}  Kd2 {[%clk 0:00:10]} 92. Qf3 {[%clk 0:00:53]}  Ke1 {[%clk 0:00:06]} 93. Qe3+ {[%clk 0:00:53]}  Kf1 {[%clk 0:00:06]} 94. Bh3# {[%clk 0:00:53]} 1-0


[Site "https://www.chess.com"]

[Event "Titled Tuesday Blitz August 16 Early 2022"]
[White "Maiorov, Nikita"]
[Black "Horak, Martin"]
[WhiteFideId "13501720"]
[BlackFideId "367095"]
[WhiteElo "2409"]
[BlackElo "1997"]
[Result "1-0"]
[Round "08"]
[TimeControl "180+2"]
[Date "2022.08.18"]
[WhiteClock "0:00:00"]
[BlackClock "0:00:00"]

1. d4 {[%clk 0:00:00]}  Nf6 {[%clk 0:00:00]} 2. c4 {[%clk 0:00:00]}  c5 {[%clk 0:00:00]} 3. d5 {[%clk 0:00:00]}  b5 {[%clk 0:00:00]} 4. cxb5 {[%clk 0:00:00]}  a6 {[%clk 0:00:00]} 5. bxa6 {[%clk 0:00:00]}  g6 {[%clk 0:00:00]} 6. Nc3 {[%clk 0:00:00]}  Bg7 {[%clk 0:00:00]} 7. g3 {[%clk 0:00:00]}  O-O {[%clk 0:00:00]} 8. Bg2 {[%clk 0:00:00]}  d6 {[%clk 0:00:00]} 9. Nf3 {[%clk 0:00:00]}  Bxa6 {[%clk 0:00:00]} 10. O-O {[%clk 0:00:00]}  Nbd7 {[%clk 0:00:00]} 11. Qc2 {[%clk 0:00:00]}  Nb6 {[%clk 0:00:00]} 12. Rd1 {[%clk 0:00:00]}  Ne8 {[%clk 0:00:00]} 13. e4 {[%clk 0:00:00]}  Nc7 {[%clk 0:00:00]} 14. b3 {[%clk 0:00:00]}  Nb5 {[%clk 0:00:00]} 15. Bb2 {[%clk 0:00:00]}  Nxc3 {[%clk 0:00:00]} 16. Bxc3 {[%clk 0:00:00]}  Nd7 {[%clk 0:00:00]} 17. Bxg7 {[%clk 0:00:00]}  Kxg7 {[%clk 0:00:00]} 18. Qc3+ {[%clk 0:00:00]}  Kg8 {[%clk 0:00:00]} 19. Rd2 {[%clk 0:00:00]}  f6 {[%clk 0:00:00]} 20. h4 {[%clk 0:00:00]}  Ne5 {[%clk 0:00:00]} 21. Nxe5 {[%clk 0:00:00]}  fxe5 {[%clk 0:00:00]} 22. a3 {[%clk 0:00:00]}  Qb6 {[%clk 0:00:00]} 23. Bh3 {[%clk 0:00:00]}  Bc8 {[%clk 0:00:00]} 24. Bxc8 {[%clk 0:00:00]}  Rfxc8 {[%clk 0:00:00]} 25. Kg2 {[%clk 0:00:00]}  Rcb8 {[%clk 0:00:00]} 26. Rb2 {[%clk 0:00:00]}  Qa5 {[%clk 0:00:00]} 27. Qe3 {[%clk 0:00:00]}  Qd8 {[%clk 0:00:00]} 28. h5 {[%clk 0:00:00]}  Kg7 {[%clk 0:00:00]} 29. hxg6 {[%clk 0:00:00]}  hxg6 {[%clk 0:00:00]} 30. Rh1 {[%clk 0:00:00]}  Rxa3 {[%clk 0:00:00]} 31. Qh6+ {[%clk 0:00:00]}  Kf6 {[%clk 0:00:00]} 32. Qh4+ {[%clk 0:00:00]}  Kg7 {[%clk 0:00:00]} 33. Qh7+ {[%clk 0:00:00]}  Kf6 {[%clk 0:00:00]} 34. g4 {[%clk 0:00:00]} 1-0


[Site "https://www.chess.com"]

[Event "Titled Tuesday Blitz August 16 Early 2022"]
[White "Manukian, Artak"]
[Black "Yurasova, Daria"]
[WhiteFideId "13301373"]
[BlackFideId "34146919"]
[WhiteElo "2196"]
[BlackElo "2021"]
[Result "1-0"]
[Round "08"]
[TimeControl "180+2"]
[Date "2022.08.18"]
[WhiteClock "0:00:00"]
[BlackClock "0:00:00"]

1. e4 {[%clk 0:00:00]}  e5 {[%clk 0:00:00]} 2. Nf3 {[%clk 0:00:00]}  Nc6 {[%clk 0:00:00]} 3. d4 {[%clk 0:00:00]}  exd4 {[%clk 0:00:00]} 4. Nxd4 {[%clk 0:00:00]}  Nf6 {[%clk 0:00:00]} 5. Nxc6 {[%clk 0:00:00]}  bxc6 {[%clk 0:00:00]} 6. e5 {[%clk 0:00:00]}  Nd5 {[%clk 0:00:00]} 7. Bd3 {[%clk 0:00:00]}  g6 {[%clk 0:00:00]} 8. O-O {[%clk 0:00:00]}  Bg7 {[%clk 0:00:00]} 9. Nd2 {[%clk 0:00:00]}  O-O {[%clk 0:00:00]} 10. Nf3 {[%clk 0:00:00]}  d6 {[%clk 0:00:00]} 11. Bg5 {[%clk 0:00:00]}  Qd7 {[%clk 0:00:00]} 12. Re1 {[%clk 0:00:00]}  Qg4 {[%clk 0:00:00]} 13. h3 {[%clk 0:00:00]}  Qb4 {[%clk 0:00:00]} 14. Qc1 {[%clk 0:00:00]}  Qb7 {[%clk 0:00:00]} 15. Bh6 {[%clk 0:00:00]}  Be6 {[%clk 0:00:00]} 16. Bxg7 {[%clk 0:00:00]}  Kxg7 {[%clk 0:00:00]} 17. b3 {[%clk 0:00:00]}  Nb4 {[%clk 0:00:00]} 18. Qg5 {[%clk 0:00:00]}  Nxd3 {[%clk 0:00:00]} 19. Qf6+ {[%clk 0:00:00]}  Kg8 {[%clk 0:00:00]} 20. cxd3 {[%clk 0:00:00]}  Qc8 {[%clk 0:00:00]} 21. Ng5 {[%clk 0:00:00]}  dxe5 {[%clk 0:00:00]} 22. Nxe6 {[%clk 0:00:00]}  Qxe6 {[%clk 0:00:00]} 23. Qxe6 {[%clk 0:00:00]}  fxe6 {[%clk 0:00:00]} 24. Rxe5 {[%clk 0:00:00]}  Rad8 {[%clk 0:00:00]} 25. Rxe6 {[%clk 0:00:00]}  Rxd3 {[%clk 0:00:00]} 26. Rxc6 {[%clk 0:00:00]}  Rf7 {[%clk 0:00:00]} 27. Rac1 {[%clk 0:00:00]}  Rd4 {[%clk 0:00:00]} 28. Rxc7 {[%clk 0:00:00]}  Rf8 {[%clk 0:00:00]} 29. Rc8 {[%clk 0:00:00]} 1-0


[Site "https://www.chess.com"]

[Event "Titled Tuesday Blitz August 16 Early 2022"]
[White "Martin, Lewis"]
[Black "Miszler, Levente"]
[WhiteFideId "410551"]
[BlackFideId "763276"]
[WhiteElo "2145"]
[BlackElo "1966"]
[Result "0-1"]
[Round "08"]
[TimeControl "180+2"]
[Date "2022.08.18"]
[WhiteClock "0:00:00"]
[BlackClock "0:00:00"]

1. e4 {[%clk 0:00:00]}  e6 {[%clk 0:00:00]} 2. d4 {[%clk 0:00:00]}  d5 {[%clk 0:00:00]} 3. Nd2 {[%clk 0:00:00]}  f5 {[%clk 0:00:00]} 4. exd5 {[%clk 0:00:00]}  exd5 {[%clk 0:00:00]} 5. Bd3 {[%clk 0:00:00]}  Nf6 {[%clk 0:00:00]} 6. f3 {[%clk 0:00:00]}  Bd6 {[%clk 0:00:00]} 7. Ne2 {[%clk 0:00:00]}  O-O {[%clk 0:00:00]} 8. Nb3 {[%clk 0:00:00]}  Nh5 {[%clk 0:00:00]} 9. Be3 {[%clk 0:00:00]}  Re8 {[%clk 0:00:00]} 10. Qd2 {[%clk 0:00:00]}  Qe7 {[%clk 0:00:00]} 11. Bf2 {[%clk 0:00:00]}  Nf4 {[%clk 0:00:00]} 12. Nc1 {[%clk 0:00:00]}  Nxg2+ {[%clk 0:00:00]} 13. Kf1 {[%clk 0:00:00]}  Ne3+ {[%clk 0:00:00]} 14. Bxe3 {[%clk 0:00:00]}  Qxe3 {[%clk 0:00:00]} 15. Qxe3 {[%clk 0:00:00]}  Rxe3 {[%clk 0:00:00]} 16. Kf2 {[%clk 0:00:00]}  Re7 {[%clk 0:00:00]} 17. Ng3 {[%clk 0:00:00]}  g6 {[%clk 0:00:00]} 18. Nb3 {[%clk 0:00:00]}  Nc6 {[%clk 0:00:00]} 19. c3 {[%clk 0:00:00]}  Bd7 {[%clk 0:00:00]} 20. Rae1 {[%clk 0:00:00]}  Rae8 {[%clk 0:00:00]} 21. Rxe7 {[%clk 0:00:00]}  Rxe7 {[%clk 0:00:00]} 22. Nf1 {[%clk 0:00:00]}  Nd8 {[%clk 0:00:00]} 23. Ne3 {[%clk 0:00:00]}  c6 {[%clk 0:00:00]} 24. c4 {[%clk 0:00:00]}  Bf4 {[%clk 0:00:00]} 25. Ng2 {[%clk 0:00:00]}  Bc7 {[%clk 0:00:00]} 26. cxd5 {[%clk 0:00:00]}  cxd5 {[%clk 0:00:00]} 27. Rc1 {[%clk 0:00:00]}  Bc6 {[%clk 0:00:00]} 28. h4 {[%clk 0:00:00]}  Ne6 {[%clk 0:00:00]} 29. h5 {[%clk 0:00:00]}  Bb6 {[%clk 0:00:00]} 30. hxg6 {[%clk 0:00:00]}  hxg6 {[%clk 0:00:00]} 31. Nh4 {[%clk 0:00:00]}  Nxd4 {[%clk 0:00:00]} 32. Nxd4 {[%clk 0:00:00]}  Bxd4+ {[%clk 0:00:00]} 33. Kg2 {[%clk 0:00:00]}  Kf7 {[%clk 0:00:00]} 34. b3 {[%clk 0:00:00]}  Kf6 {[%clk 0:00:00]} 35. f4 {[%clk 0:00:00]}  Be3 {[%clk 0:00:00]} 36. Rf1 {[%clk 0:00:00]}  d4+ {[%clk 0:00:00]} 37. Kg3 {[%clk 0:00:00]}  Rh7 {[%clk 0:00:00]} 38. Nf3 {[%clk 0:00:00]}  Re7 {[%clk 0:00:00]} 39. Ne5 {[%clk 0:00:00]}  Bxf4+ {[%clk 0:00:00]} 40. Kxf4 {[%clk 0:00:00]}  Rxe5 {[%clk 0:00:00]} 41. Rh1 {[%clk 0:00:00]}  Bxh1 {[%clk 0:00:00]} 0-1


[Site "https://www.chess.com"]